[Event "XXIX Cracovia 2018"]
[Site "Krakow"]
[Date "2019.01.03"]
[Round "8"]
[White "Szwaj, Jacek"]
[Black "Adamczewski, Maciej"]
[Result "1/2-1/2"]
[ECO "C03"]
[WhiteElo "1968"]
[BlackElo "2080"]
[Annotator "NA"]
[PlyCount "143"]
[EventDate "2018.12.27"]
[EventType "swiss"]
[EventCountry "POL"]
[SourceTitle "playchess.com"]
[Source "ChessBase"]
[SourceQuality "1"]
[TimeControl "40/5400+30:1800+30"]

1. e4 {[%emt 0:00:00]} e6 {[%emt 0:02:42]} 2. d4 {[%emt 0:00:00]} d5 {[%emt 0:00:06]} 3. Nd2 {[%emt 0:00:00]} a6 {[%emt 0:00:10]} 4. Bd3 {[%emt 0:04:25]} c5 {[%emt 0:00:17]} 5. dxc5 {[%emt 0:04:03]} Bxc5 {[%emt 0:00:21]} 6. Ngf3 {[%emt 0:01:10]} Nc6 {[%emt 0:04:07]} 7. exd5 {[%emt 0:08:59]} exd5 {[%emt 0:01:15]} 8. O-O {[%emt 0:00:14]} Nf6 {[%emt 0:00:24]} 9. Re1+ {[%emt 0:00:23]} Be7 {[%emt 0:00:10]} 10. c3 {[%emt 0:01:10]} O-O {[%emt 0:00:24]} 11. Nb3 {[%emt 0:02:11]} Bg4 {[%emt 0:00:22]} 12. Nbd4 {[%emt 0:03:52]} Re8 {[%emt 0:09:40]} 13. Qc2 {[%emt 0:05:21]} Bh5 {[%emt 0:07:00]} 14. Bg5 {[%emt 0:03:15]} h6 {[%emt 0:24:24]} 15. Bh4 {[%emt 0:02:11]} Bxf3 {[%emt 0:04:29]} 16. Nxf3 {[%emt 0:01:52]} Nd7 {[%emt 0:04:46]} 17. Bxe7 {[%emt 0:08:42]} Rxe7 {[%emt 0:00:19]} 18. Rxe7 {[%emt 0:01:54]} Qxe7 {[%emt 0:00:38]} 19. Re1 {[%emt 0:01:20]} Qd6 {[%emt 0:03:12]} 20. Qd2 {[%emt 0:03:31]} Rd8 {[%emt 0:03:40]} 21. Bc2 {[%emt 0:06:07]} Nc5 {[%emt 0:04:29]} 22. Qe2 {[%emt 0:04:25]} Kf8 {[%emt 0:06:04]} 23. Qe3 {[%emt 0:03:47]} Ne6 {[%emt 0:01:01]} 24. Qd3 {[%emt 0:01:26]} Ke7 {[%emt 0:04:33]} 25. Bb3 {[%emt 0:04:04]} Rd7 {[%emt 0:02:14]} 26. g3 {[%emt 0:10:20]} Kd8 {[%emt 0:00:33]} 27. Ba4 {[%emt 0:02:53]} Nc5 {[%emt 0:01:19]} 28. Qd1 {[%emt 0:00:06]} b5 {[%emt 0:02:41]} 29. Bc2 {[%emt 0:00:12]} g6 {[%emt 0:01:28]} 30. Qd2 {[%emt 0:02:22]} h5 {[%emt 0:00:41]} 31. b4 {[%emt 0:03:34]} Ne6 {[%emt 0:01:03]} 32. Bb3 {[%emt 0:00:18]} Nc7 {[%emt 0:06:11]} 33. Rd1 {[%emt 0:03:20]} Kc8 {[%emt 0:00:04]} 34. a4 {[%emt 0:00:23]} Ne5 {[%emt 0:01:16]} 35. Ne1 {[%emt 0:03:49]} Qc6 {[%emt 0:02:24]} 36. axb5 {[%emt 0:01:03]} axb5 {[%emt 0:01:49]} 37. Qd4 {[%emt 0:00:19]} Nc4 {[%emt 0:00:21]} 38. Nd3 {[%emt 0:02:26]} Ne6 {[%emt 0:00:14]} 39. Qh8+ {[%emt 0:00:17]} Rd8 {[%emt 0:00:12]} 40. Qf6 {[%emt 0:00:00]} Qc7 {[%emt 0:00:00]} 41. Ra1 {[%emt 0:02:42]} Nb6 {[%emt 0:11:31]} 42. Qe5 {[%emt 0:12:13]} Qxe5 {[%emt 0:04:10]} 43. Nxe5 {[%emt 0:00:05]} Ng5 {[%emt 0:02:53]} 44. f4 {[%emt 0:01:27]} Ne4 {[%emt 0:06:11]} 45. Nxf7 {[%emt 0:00:37]} Rf8 {[%emt 0:00:09]} 46. Ne5 {[%emt 0:01:19]} Nxc3 {[%emt 0:02:29]} 47. Nxg6 {[%emt 0:04:04]} Rf6 {[%emt 0:00:11]} 48. Ne5 {[%emt 0:00:45]} Nc4 {[%emt 0:00:14]} 49. Bd1 {[%emt 0:02:43]} Nxe5 {[%emt 0:01:39]} 50. fxe5 {[%emt 0:01:00]} Rf5 {[%emt 0:00:50]} 51. e6 {[%emt 0:03:53]} Re5 {[%emt 0:00:14]} 52. Bf3 {[%emt 0:00:42]} Kd8 {[%emt 0:03:01]} 53. Ra7 {[%emt 0:00:48]} Rxe6 {[%emt 0:00:24]} 54. Bxh5 {[%emt 0:00:35]} d4 {[%emt 0:00:07]} 55. Ra3 {[%emt 0:02:20]} Re5 {[%emt 0:01:10]} 56. Bf3 {[%emt 0:00:30]} Re1+ {[%emt 0:01:28]} 57. Kf2 {[%emt 0:00:39]} Rb1 {[%emt 0:00:06]} 58. h4 {[%emt 0:00:33]} Rxb4 {[%emt 0:00:50]} 59. h5 {[%emt 0:00:43]} Ke7 {[%emt 0:00:20]} 60. h6 {[%emt 0:00:43]} Rb2+ {[%emt 0:01:15]} 61. Kg1 {[%emt 0:01:46]} Kf7 {[%emt 0:00:18]} 62. Bh5+ {[%emt 0:00:46]} Kg8 {[%emt 0:00:42]} 63. Bg6 {[%emt 0:00:16]} Ra2 {[%emt 0:00:54]} 64. Rxa2 {[%emt 0:01:29]} Nxa2 {[%emt 0:00:06]} 65. Kf2 {[%emt 0:00:27]} Nc3 {[%emt 0:00:54]} 66. g4 {[%emt 0:00:57]} b4 {[%emt 0:00:48]} 67. Bc2 {[%emt 0:00:10]} Kh8 {[%emt 0:00:43]} 68. Ke1 {[%emt 0:01:30]} Nd5 {[%emt 0:01:12]} 69. Kf2 {[%emt 0:01:42]} Ne3 {[%emt 0:00:13]} 70. Bb3 {[%emt 0:01:15]} Nxg4+ {[%emt 0:00:16]} 71. Kf3 {[%emt 0:00:21]} Nxh6 72. Ke4 1/2-1/2

[Event "XXIX Cracovia 2018"]
[Site "Krakow"]
[Date "2019.01.03"]
[Round "8"]
[White "Rysaev, Danial"]
[Black "Nikitin, Aleksander I"]
[Result "1-0"]
[ECO "A85"]
[WhiteElo "1945"]
[BlackElo "2031"]
[Annotator "NA"]
[PlyCount "67"]
[EventDate "2018.12.27"]
[EventType "swiss"]
[EventCountry "POL"]
[SourceTitle "playchess.com"]
[Source "ChessBase"]
[SourceQuality "1"]
[TimeControl "40/5400+30:1800+30"]

1. d4 f5 2. c4 Nf6 3. Nc3 d6 4. Nf3 c6 5. g3 Qc7 6. d5 e5 7. dxe6 Bxe6 8. b3 g6 9. Bg2 {[%emt 0:21:17]} Na6 {[%emt 0:25:00]} 10. O-O {[%emt 0:00:27]} Bg7 {[%emt 0:00:56]} 11. Bf4 {[%emt 0:00:52]} Rd8 {[%emt 0:01:48]} 12. Nd4 {[%emt 0:02:21]} Qc8 {[%emt 0:16:57]} 13. e4 {[%emt 0:13:16]} fxe4 {[%emt 0:03:38]} 14. Nxe4 {[%emt 0:02:01]} Nxe4 {[%emt 0:01:04]} 15. Bxe4 {[%emt 0:00:10]} Bh3 {[%emt 0:04:54]} 16. Bg2 {[%emt 0:01:30]} O-O {[%emt 0:01:07]} 17. Re1 {[%emt 0:01:54]} Bxg2 {[%emt 0:08:47]} 18. Kxg2 {[%emt 0:01:05]} Rde8 {[%emt 0:08:18]} 19. Rxe8 Qxe8 20. Rc1 Qe4+ 21. Nf3 {[%emt 0:05:37]} d5 22. cxd5 cxd5 23. Kg1 h6 24. h4 Nb4 {[%emt 0:23:21]} 25. Nd2 {[%emt 0:04:45]} Qf5 {[%emt 0:04:54]} 26. Nf1 Nd3 27. Rc7 g5 28. hxg5 hxg5 29. Ne3 Qg6 30. Nxd5 {[%emt 0:09:57]} Re8 {[%emt 0:03:43]} 31. Be3 Qe4 32. Qh5 {[%emt 0:01:06]} Qe6 {[%emt 0:01:02]} 33. Qxg5 {[%emt 0:00:13]} Ne5 {[%emt 0:00:20]} 34. Qxg7# {[%emt 0:00:02]} 1-0

[Event "XXIX Cracovia 2018"]
[Site "Krakow"]
[Date "2019.01.04"]
[Round "9"]
[White "Jarmula, Lukasz"]
[Black "Chomczyk, Marek"]
[Result "1-0"]
[ECO "D35"]
[WhiteElo "2481"]
[BlackElo "2294"]
[Annotator "ChessBase"]
[PlyCount "59"]
[EventDate "2018.12.27"]
[EventType "swiss"]
[EventCountry "POL"]
[SourceTitle "playchess.com"]
[Source "ChessBase"]
[SourceQuality "1"]
[TimeControl "40/5400+30:1800+30"]

1. d4 {[%emt 0:00:45]} Nf6 {[%emt 0:00:00]} 2. c4 {[%emt 0:00:09]} e6 {[%emt 0:00:00]} 3. Nc3 {[%emt 0:00:05]} d5 {[%emt 0:01:02]} 4. cxd5 {[%emt 0:00:33]} exd5 {[%emt 0:00:12]} 5. Bg5 {[%emt 0:00:06]} Be7 {[%emt 0:00:42]} 6. e3 {[%emt 0:00:09]} O-O {[%emt 0:00:11]} 7. Bd3 {[%emt 0:00:05]} c6 {[%emt 0:04:36]} 8. Qc2 {[%emt 0:00:07]} Nbd7 {[%emt 0:01:54]} 9. Nge2 {[%emt 0:00:09]} Re8 {[%emt 0:00:08]} 10. O-O {[%emt 0:00:17]} Nf8 {[%emt 0:00:21]} 11. f3 {[%emt 0:03:50]} Ne6 {[%emt 0:08:30]} 12. Bxf6 {[%emt 0:04:10]} Bxf6 {[%emt 0:00:30]} 13. Bxh7+ {[%emt 0:00:09]} Kh8 {[%emt 0:00:27]} 14. Bd3 {[%emt 0:02:20]} c5 {[%emt 0:01:35]} 15. Bb5 {[%emt 0:01:42]} Bd7 {[%emt 0:12:39]} 16. Bxd7 {[%emt 0:00:19]} Qxd7 {[%emt 0:00:07]} 17. dxc5 {[%emt 0:00:35]} Qc6 {[%emt 0:11:44]} 18. Rad1 {[%emt 0:03:07]} Qxc5 {[%emt 0:03:11]} 19. Rxd5 {[%emt 0:00:53]} Qxe3+ {[%emt 0:00:29]} 20. Kh1 {[%emt 0:00:06]} g6 {[%emt 0:02:33]} 21. Rd7 {[%emt 0:00:37]} Kg7 {[%emt 0:02:18]} 22. Nd5 {[%emt 0:01:56]} Qc5 {[%emt 0:02:30]} 23. Qb3 {[%emt 0:02:24]} Be5 {[%emt 0:26:55]} 24. f4 {[%emt 0:07:33]} Rad8 {[%emt 0:00:58]} 25. Rxb7 {[%emt 0:07:54]} Bb8 {[%emt 0:06:32]} 26. f5 {[%emt 0:01:29]} Rh8 {[%emt 0:06:05]} 27. f6+ {[%emt 0:01:28]} Kg8 {[%emt 0:02:22]} 28. Rxb8 {[%emt 0:01:02]} Rxh2+ {[%emt 0:00:31]} 29. Kxh2 {[%emt 0:00:06]} Qd6+ {[%emt 0:00:08]} 30. Qg3 {[%emt 0:00:06]} 1-0

[Event "XXIX Cracovia 2018"]
[Site "Krakow"]
[Date "2019.01.04"]
[Round "9"]
[White "Janik, Igor"]
[Black "Lewicki, Miroslaw"]
[Result "1-0"]
[ECO "E06"]
[WhiteElo "2476"]
[BlackElo "2347"]
[Annotator "ChessBase"]
[PlyCount "83"]
[EventDate "2018.12.27"]
[EventType "swiss"]
[EventCountry "POL"]
[SourceTitle "playchess.com"]
[Source "ChessBase"]
[SourceQuality "1"]
[TimeControl "40/5400+30:1800+30"]

1. d4 {[%emt 0:00:00]} Nf6 {[%emt 0:00:11]} 2. c4 {[%emt 0:00:00]} e6 {[%emt 0:00:06]} 3. g3 {[%emt 0:00:00]} d5 {[%emt 0:00:18]} 4. Nf3 {[%emt 0:00:00]} Be7 {[%emt 0:00:50]} 5. Bg2 {[%emt 0:00:00]} O-O {[%emt 0:00:10]} 6. O-O {[%emt 0:00:00]} b6 {[%emt 0:00:45]} 7. cxd5 {[%emt 0:00:00]} exd5 {[%emt 0:00:10]} 8. Nc3 {[%emt 0:00:02]} Bb7 {[%emt 0:00:17]} 9. Bf4 {[%emt 0:00:06]} Nbd7 {[%emt 0:01:58]} 10. Rc1 {[%emt 0:02:06]} c5 {[%emt 0:00:14]} 11. Qc2 {[%emt 0:00:45]} Rc8 {[%emt 0:05:07]} 12. Rfd1 {[%emt 0:01:00]} Ne4 {[%emt 0:03:02]} 13. Qb1 {[%emt 0:06:29]} Nxc3 {[%emt 0:03:27]} 14. Rxc3 {[%emt 0:01:25]} c4 {[%emt 0:02:26]} 15. Bh3 {[%emt 0:07:53]} b5 {[%emt 0:00:09]} 16. Ne5 {[%emt 0:02:40]} Nxe5 {[%emt 0:00:09]} 17. Bxc8 {[%emt 0:02:12]} Qxc8 {[%emt 0:00:06]} 18. Bxe5 {[%emt 0:00:48]} g5 {[%emt 0:00:07]} 19. g4 {[%emt 0:00:03]} Qxg4+ {[%emt 0:07:32]} 20. Rg3 {[%emt 0:01:19]} Qh5 {[%emt 0:08:21]} 21. f4 {[%emt 0:10:18]} f6 {[%emt 0:08:55]} 22. Bc7 {[%emt 0:00:39]} h6 {[%emt 0:02:57]} 23. Qf5 {[%emt 0:03:35]} Qf7 {[%emt 0:02:34]} 24. fxg5 {[%emt 0:01:10]} hxg5 {[%emt 0:00:16]} 25. Qd7 {[%emt 0:06:11]} Bc8 {[%emt 0:07:16]} 26. Qxb5 {[%emt 0:02:02]} Qe6 {[%emt 0:01:14]} 27. Qa5 {[%emt 0:04:23]} Qc6 {[%emt 0:03:14]} 28. Qxa7 {[%emt 0:05:27]} Bf5 {[%emt 0:00:21]} 29. Qb6 {[%emt 0:04:52]} Qd7 {[%emt 0:00:11]} 30. h4 {[%emt 0:01:22]} g4 {[%emt 0:02:45]} 31. Rf1 {[%emt 0:04:51]} Kf7 {[%emt 0:01:28]} 32. Re3 {[%emt 0:01:25]} Be4 {[%emt 0:00:49]} 33. Bg3 {[%emt 0:00:24]} f5 {[%emt 0:06:22]} 34. b3 {[%emt 0:06:10]} Qe6 {[%emt 0:04:37]} 35. Qa7 {[%emt 0:04:03]} Rc8 {[%emt 0:04:36]} 36. bxc4 {[%emt 0:05:35]} Rxc4 {[%emt 0:00:05]} 37. Rb3 {[%emt 0:01:51]} Bc2 {[%emt 0:00:03]} 38. Rb7 {[%emt 0:00:30]} Rc3 {[%emt 0:01:35]} 39. Be5 {[%emt 0:00:38]} Re3 {[%emt 0:03:16]} 40. Rb6 {[%emt 0:00:00]} Qc8 {[%emt 0:00:00]} 41. Rf6+ {[%emt 0:05:04]} Ke8 {[%emt 0:00:09]} 42. Rh6 {[%emt 0:01:02]} 1-0

[Event "XXIX Cracovia 2018"]
[Site "Krakow"]
[Date "2019.01.04"]
[Round "9"]
[White "Tomczak, Mikolaj"]
[Black "Piotrowski, Przemyslaw"]
[Result "1/2-1/2"]
[ECO "B59"]
[WhiteElo "2442"]
[BlackElo "2269"]
[Annotator "ChessBase"]
[PlyCount "23"]
[EventDate "2018.12.27"]
[EventType "swiss"]
[EventCountry "POL"]
[SourceTitle "playchess.com"]
[Source "ChessBase"]
[SourceQuality "1"]
[TimeControl "40/5400+30:1800+30"]

1. e4 c5 2. Nf3 Nc6 3. d4 cxd4 4. Nxd4 Nf6 5. Nc3 d6 6. Be2 e5 7. Nb3 Be7 8. O-O O-O 9. Be3 a5 10. Nd2 Be6 11. Nc4 b5 12. Nb6 1/2-1/2

[Event "XXIX Cracovia 2018"]
[Site "Krakow"]
[Date "2019.01.04"]
[Round "9"]
[White "Hnydiuk, Aleksander"]
[Black "Cukrowski, Filip"]
[Result "1/2-1/2"]
[ECO "A40"]
[WhiteElo "2409"]
[BlackElo "2416"]
[Annotator "NA"]
[PlyCount "135"]
[EventDate "2018.12.27"]
[EventType "swiss"]
[EventCountry "POL"]
[SourceTitle "playchess.com"]
[Source "ChessBase"]
[SourceQuality "1"]
[TimeControl "40/5400+30:1800+30"]

1. d4 {[%emt 0:05:47]} Nf6 {[%emt 0:04:48]} 2. c4 {[%emt 0:00:10]} e6 {[%emt 0:00:19]} 3. g3 {[%emt 0:00:04]} b6 {[%emt 0:01:33]} 4. Bg2 {[%emt 0:00:06]} d5 {[%emt 0:00:19]} 5. Nf3 {[%emt 0:04:48]} Ba6 {[%emt 0:01:02]} 6. cxd5 {[%emt 0:13:56]} exd5 {[%emt 0:00:11] LiveBook: 3 Games} 7. O-O {[%emt 0:13:59]} Be7 $14 {[%emt 0:06:46]} 8. Nc3 {[%emt 0:00:53]} O-O {[%emt 0:04:11]} 9. Ne5 {[%emt 0:13:26]} Bb7 {[%emt 0:11:29]} 10. Qa4 {[%emt 0:03:53]} c6 {[%emt 0:05:31]} 11. Rd1 {[%emt 0:09:01]} b5 {[%emt 0:06:24]} 12. Qc2 {[%emt 0:02:22]} Nbd7 {[%emt 0:00:20]} 13. Bf4 {[%emt 0:03:28]} Re8 {[%emt 0:09:20]} 14. Nxd7 {[%emt 0:05:23]} Qxd7 {[%emt 0:01:00]} 15. Bg5 {[%emt 0:01:29]} Rad8 {[%emt 0:04:11]} 16. e3 {[%emt 0:04:49]} a5 {[%emt 0:01:51]} 17. Bxf6 {[%emt 0:02:20]} Bxf6 {[%emt 0:00:10]} 18. Ne2 {[%emt 0:00:13]} Ba6 {[%emt 0:06:04]} 19. Nf4 {[%emt 0:00:22]} b4 {[%emt 0:01:58]} 20. Rac1 {[%emt 0:02:44]} Bb5 {[%emt 0:00:15]} 21. Bf1 {[%emt 0:02:28]} Bxf1 {[%emt 0:00:33]} 22. Kxf1 {[%emt 0:00:30]} Rc8 {[%emt 0:00:07]} 23. Qa4 {[%emt 0:02:09]} Be7 {[%emt 0:03:45]} 24. Kg2 {[%emt 0:00:30]} Qb7 {[%emt 0:02:18]} 25. Rc2 {[%emt 0:02:58]} Bd6 {[%emt 0:05:46]} 26. Nd3 {[%emt 0:00:12]} Re7 {[%emt 0:01:41]} 27. Rdc1 {[%emt 0:00:16]} Rec7 {[%emt 0:00:15]} 28. a3 {[%emt 0:01:56]} bxa3 {[%emt 0:00:56]} 29. bxa3 {[%emt 0:00:02]} Qb5 {[%emt 0:01:00]} 30. Qxb5 {[%emt 0:02:05]} cxb5 {[%emt 0:00:07]} 31. Rxc7 {[%emt 0:00:46]} Rxc7 {[%emt 0:00:05]} 32. Rb1 {[%emt 0:00:33]} b4 {[%emt 0:01:30]} 33. axb4 {[%emt 0:00:47]} axb4 {[%emt 0:00:03]} 34. Kf3 {[%emt 0:01:20]} f6 {[%emt 0:00:28]} 35. Nc5 {[%emt 0:01:05]} Bxc5 {[%emt 0:00:07]} 36. dxc5 {[%emt 0:00:02]} Rxc5 {[%emt 0:00:40]} 37. Rxb4 {[%emt 0:00:02]} Kf7 {[%emt 0:00:40]} 38. Rb7+ {[%emt 0:00:07]} Kg6 {[%emt 0:00:05]} 39. g4 {[%emt 0:00:51]} h5 {[%emt 0:00:06]} 40. gxh5+ {[%emt 0:00:00]} Kh6 {[%emt 0:00:00]} 41. Rd7 {[%emt 0:00:50]} Ra5 {[%emt 0:01:09]} 42. h3 {[%emt 0:03:59]} Rb5 {[%emt 0:00:46]} 43. Kg4 {[%emt 0:01:57]} Ra5 {[%emt 0:00:20]} 44. Rd8 {[%emt 0:01:11]} Kh7 {[%emt 0:00:04]} 45. f4 {[%emt 0:07:17]} Rb5 {[%emt 0:00:07]} 46. Kf3 {[%emt 0:00:26]} Ra5 {[%emt 0:00:08]} 47. Ke2 {[%emt 0:00:26]} d4 {[%emt 0:08:20]} 48. exd4 {[%emt 0:02:38]} Rxh5 {[%emt 0:00:24]} 49. d5 {[%emt 0:11:54]} Kg6 {[%emt 0:00:06]} 50. d6 {[%emt 0:01:19]} Kf7 {[%emt 0:00:11]} 51. Rd7+ {[%emt 0:03:24]} Ke6 {[%emt 0:00:07]} 52. Rxg7 {[%emt 0:00:08]} Kxd6 {[%emt 0:00:03]} 53. Kf3 {[%emt 0:00:45]} Rxh3+ {[%emt 0:12:55]} 54. Kg4 {[%emt 0:00:02]} Rh1 {[%emt 0:00:06]} 55. Kf5 {[%emt 0:00:15]} Rf1 {[%emt 0:00:02]} 56. Ra7 {[%emt 0:00:11]} Rf2 {[%emt 0:00:26]} 57. Rh7 {[%emt 0:01:02]} Rf1 {[%emt 0:00:05]} 58. Rg7 {[%emt 0:00:04]} Rf2 {[%emt 0:00:06]} 59. Rb7 {[%emt 0:00:06]} Rf1 {[%emt 0:00:06]} 60. Ra7 {[%emt 0:00:05]} Rf2 {[%emt 0:00:07]} 61. Rf7 {[%emt 0:03:39]} Rf1 {[%emt 0:00:05]} 62. Rxf6+ {[%emt 0:00:26]} Ke7 {[%emt 0:00:04]} 63. Ra6 {[%emt 0:00:39]} Kf7 {[%emt 0:00:19]} 64. Ra7+ {[%emt 0:00:29]} Kf8 {[%emt 0:00:06]} 65. Kg5 {[%emt 0:00:32]} Rb1 {[%emt 0:00:24]} 66. f5 {[%emt 0:00:08]} Rb6 {[%emt 0:00:04]} 67. f6 {[%emt 0:00:38]} Rb1 {[%emt 0:00:10]} 68. Ra8+ {[%emt 0:00:11]} 1/2-1/2

[Event "XXIX Cracovia 2018"]
[Site "Krakow"]
[Date "2019.01.04"]
[Round "9"]
[White "Molenda, Marcin"]
[Black "Reza, Wojciech"]
[Result "1-0"]
[ECO "A46"]
[WhiteElo "2383"]
[BlackElo "2287"]
[Annotator "NA"]
[PlyCount "73"]
[EventDate "2018.12.27"]
[EventType "swiss"]
[EventCountry "POL"]
[SourceTitle "playchess.com"]
[Source "ChessBase"]
[SourceQuality "1"]
[TimeControl "40/5400+30:1800+30"]

1. d4 {[%emt 0:00:00]} Nf6 {[%emt 0:02:05]} 2. Nf3 {[%emt 0:00:00]} c5 {[%emt 0:01:25]} 3. g3 {[%emt 0:02:45]} b6 {[%emt 0:13:28]} 4. Bg2 {[%emt 0:01:16]} Bb7 {[%emt 0:00:12]} 5. O-O {[%emt 0:00:18]} g6 {[%emt 0:03:37]} 6. c4 {[%emt 0:01:16]} cxd4 {[%emt 0:00:43]} 7. b3 {[%emt 0:03:08]} Bg7 {[%emt 0:02:35]} 8. Bb2 {[%emt 0:00:45]} O-O {[%emt 0:01:08]} 9. Qxd4 $11 {[%emt 0:16:13] LiveBook: 155 Games} Ne8 {[%emt 0:12:15]} 10. Qd2 {[%emt 0:00:13]} Na6 {[%emt 0:05:56]} 11. Bxg7 {[%emt 0:04:45]} Nxg7 {[%emt 0:08:50]} 12. Nc3 {[%emt 0:03:28]} d6 {[%emt 0:09:56]} 13. e4 {[%emt 0:00:51]} Nc7 {[%emt 0:12:05]} 14. Qh6 {[%emt 0:01:18]} f6 {[%emt 0:05:31]} 15. Rad1 {[%emt 0:02:35]} e5 {[%emt 0:03:27]} 16. Qd2 {[%emt 0:02:17]} Nge8 {[%emt 0:00:12]} 17. Ne1 {[%emt 0:00:22]} Qe7 {[%emt 0:00:47]} 18. Qb2 {[%emt 0:01:59]} Ne6 {[%emt 0:01:14]} 19. Nc2 {[%emt 0:00:09]} N8c7 {[%emt 0:00:59]} 20. Rd2 {[%emt 0:00:28]} Rad8 {[%emt 0:02:41]} 21. Rfd1 {[%emt 0:00:57]} f5 {[%emt 0:03:38]} 22. Qa3 {[%emt 0:02:38]} fxe4 {[%emt 0:04:14]} 23. Nxe4 {[%emt 0:00:39]} Bxe4 {[%emt 0:00:45]} 24. Bxe4 {[%emt 0:00:02]} Nc5 {[%emt 0:00:41]} 25. Bg2 {[%emt 0:00:52]} a5 {[%emt 0:02:31]} 26. Qb2 {[%emt 0:03:14]} Qf6 {[%emt 0:01:02]} 27. Ne3 {[%emt 0:00:45]} h5 {[%emt 0:00:32]} 28. a3 {[%emt 0:00:52]} e4 {[%emt 0:00:56]} 29. Qxf6 {[%emt 0:02:09]} Rxf6 {[%emt 0:00:04]} 30. b4 {[%emt 0:00:06]} axb4 31. axb4 {[%emt 0:00:01]} Nd3 {[%emt 0:01:21]} 32. Bxe4 {[%emt 0:03:14]} Nxb4 {[%emt 0:00:21]} 33. Rb1 {[%emt 0:00:36]} Nba6 {[%emt 0:00:19]} 34. Rxb6 {[%emt 0:00:06]} Nc5 {[%emt 0:00:14]} 35. Bc2 {[%emt 0:01:32]} g5 {[%emt 0:01:11]} 36. Rc6 {[%emt 0:01:47]} N7a6 {[%emt 0:00:29]} 37. Rd5 {[%emt 0:00:27]} 1-0

[Event "XXIX Cracovia 2018"]
[Site "Krakow"]
[Date "2019.01.04"]
[Round "9"]
[White "Paszewski, Mateusz"]
[Black "Dzierzak, Radoslaw"]
[Result "1-0"]
[ECO "B13"]
[WhiteElo "2342"]
[BlackElo "2283"]
[Annotator "NA"]
[PlyCount "121"]
[EventDate "2018.12.27"]
[EventType "swiss"]
[EventCountry "POL"]
[SourceTitle "playchess.com"]
[Source "ChessBase"]
[SourceQuality "1"]
[TimeControl "40/5400+30:1800+30"]

1. e4 {[%emt 0:00:00]} c6 {[%emt 0:03:12]} 2. d4 {[%emt 0:00:00]} d5 {[%emt 0:00:06]} 3. exd5 {[%emt 0:00:00]} cxd5 {[%emt 0:00:06]} 4. Bd3 {[%emt 0:00:00]} Nc6 {[%emt 0:00:31]} 5. c3 {[%emt 0:00:00]} Qc7 {[%emt 0:00:08]} 6. h3 {[%emt 0:00:00]} e5 {[%emt 0:02:18]} 7. dxe5 {[%emt 0:01:57]} Nxe5 {[%emt 0:00:06]} 8. Bc2 {[%emt 0:00:07]} Nf6 {[%emt 0:03:55]} 9. Nf3 {[%emt 0:09:55]} Be7 {[%emt 0:04:47]} 10. O-O {[%emt 0:02:40]} O-O {[%emt 0:00:58]} 11. Nbd2 {[%emt 0:07:15]} Rd8 {[%emt 0:19:34]} 12. Nxe5 {[%emt 0:09:48]} Qxe5 {[%emt 0:00:08]} 13. Nf3 {[%emt 0:00:07]} Qh5 {[%emt 0:05:21]} 14. Nd4 {[%emt 0:00:56]} Qh4 {[%emt 0:01:22]} 15. Nf3 {[%emt 0:07:52]} Qh5 {[%emt 0:00:27]} 16. Nd4 {[%emt 0:01:25]} Qh4 {[%emt 0:00:06]} 17. Re1 {[%emt 0:17:21]} Bc5 {[%emt 0:08:29]} 18. Be3 {[%emt 0:02:25]} Ne4 {[%emt 0:01:29]} 19. Nf3 {[%emt 0:05:26]} Qf6 {[%emt 0:05:46]} 20. Bxc5 {[%emt 0:01:36]} Nxc5 {[%emt 0:00:05]} 21. Qxd5 {[%emt 0:01:24]} Ne6 {[%emt 0:00:37]} 22. Qe4 {[%emt 0:03:00]} g6 {[%emt 0:00:20]} 23. Rad1 {[%emt 0:00:35]} Bd7 {[%emt 0:01:18]} 24. Ne5 {[%emt 0:03:58]} Nc5 {[%emt 0:01:44]} 25. Qe3 {[%emt 0:04:35]} b6 {[%emt 0:01:38]} 26. Nxd7 {[%emt 0:05:58]} Nxd7 {[%emt 0:04:59]} 27. Qd4 {[%emt 0:05:44]} Qxd4 {[%emt 0:01:28]} 28. Rxd4 {[%emt 0:01:01]} Nc5 {[%emt 0:00:47]} 29. Re7 {[%emt 0:00:46]} Kf8 {[%emt 0:02:26]} 30. Rxd8+ {[%emt 0:05:24]} Rxd8 {[%emt 0:00:09]} 31. Rxa7 {[%emt 0:00:01]} Rd2 {[%emt 0:00:12]} 32. Bb3 {[%emt 0:00:03]} Nxb3 {[%emt 0:00:35]} 33. axb3 {[%emt 0:00:01]} Rxb2 {[%emt 0:00:09]} 34. b4 {[%emt 0:00:02]} Rc2 {[%emt 0:01:17]} 35. Rc7 {[%emt 0:00:45]} h5 {[%emt 0:00:52]} 36. b5 {[%emt 0:03:21]} h4 {[%emt 0:00:42]} 37. Kf1 {[%emt 0:00:38]} g5 {[%emt 0:00:56]} 38. Rc6 {[%emt 0:00:52]} Ke7 {[%emt 0:01:15]} 39. c4 {[%emt 0:01:00]} Kd7 {[%emt 0:03:14]} 40. Ke1 {[%emt 0:00:00]} Kd8 {[%emt 0:00:00]} 41. Kf1 {[%emt 0:12:27]} Kd7 {[%emt 0:08:19]} 42. Rxb6 {[%emt 0:15:31]} Rxc4 {[%emt 0:00:27]} 43. Rh6 {[%emt 0:00:02]} Rb4 {[%emt 0:01:22]} 44. b6 {[%emt 0:00:17]} Ke7 {[%emt 0:04:02]} 45. Ke2 {[%emt 0:00:29]} Rb2+ {[%emt 0:04:02]} 46. Kf3 {[%emt 0:00:28]} Kf8 {[%emt 0:00:29]} 47. g3 {[%emt 0:02:53]} Kg7 {[%emt 0:01:37]} 48. Rc6 {[%emt 0:00:02]} Rb4 {[%emt 0:01:09]} 49. Rd6 {[%emt 0:01:21]} Kh7 {[%emt 0:10:52]} 50. Ke3 {[%emt 0:01:12]} Rb3+ {[%emt 0:05:28]} 51. Ke4 {[%emt 0:00:10]} hxg3 {[%emt 0:00:19]} 52. fxg3 {[%emt 0:00:01]} Kg7 {[%emt 0:01:51]} 53. g4 {[%emt 0:01:28]} Rxh3 {[%emt 0:03:46]} 54. Rd3 {[%emt 0:00:38]} Rh8 {[%emt 0:00:15]} 55. b7 {[%emt 0:01:37]} Rb8 {[%emt 0:00:08]} 56. Rb3 {[%emt 0:00:01]} Kg6 {[%emt 0:00:45]} 57. Rb6+ {[%emt 0:00:19]} f6 {[%emt 0:00:38]} 58. Kd5 {[%emt 0:01:01]} Kf7 {[%emt 0:00:16]} 59. Kd6 {[%emt 0:00:37]} f5 {[%emt 0:00:55]} 60. gxf5 {[%emt 0:00:01]} g4 {[%emt 0:00:35]} 61. Kc7 {[%emt 0:00:14]} 1-0